Workbook

Sheet Einführung
B2: GREGOR - Graue Energie von Gebäuden - Ökologischer Rucksack
B4: 12/2022
B5: Zur Verfügung gestellt von klimaaktiv, der Klimaschutzinitative des Bundesministeriums für Klimaschutz, Umwelt, Energie, Mobilität, Innovation und Technologie.
B15: Kurzbeschreibung des Tools
B16: Sanierung oder Neubau? Betrachtet man ein Gebäude anhand seiner Energieeffizienz wird der Neubau der Sanierung oft vorgezogen. Aus ökologischer Sichtweise kann eine Sanierung allerdings durchwegs klimafreundlicher sein als der Abriss und Neubau des Gebäudes. Immerhin wurden durch den Bau des Gebäudes bereits Energie verbraucht und Emissionen verursacht. Dieses Excel-Tool ermöglicht eine Abschätzung des 'versteckten' ökologischen Rucksacks über den Lebenszyklus eines Gebäudes. In der Betrachtung werden die Treibhausgas-Emissionen (CO2e-Emissionen) und die fossile Primärenergie (graue Energie) eines Gebäudes für die Szenarien Sanierung und Neubau miteinander verglichen. Dabei werden neben den jährlichen THG-Emissionen, welche durch die Bereistellung von Energie in der Nutzungsphase anfallen, auch jene THG-Emissionen berücksichtigt, welche über den Lebensweg der Baustoffe entstehen. Parallel dazu erfolgt eine Bilanzierung der "grauen Energie". Da es sich um Standardwerte handelt dient das Tool zur Einordung und Abschätzung der Größenverhältnisse. Für detaillierte Daten zu einem spezifischen Bauvorhaben ist eine umfassende Ökobilanz erforderlich.
B51: Zielgruppe
B52: Planner:innen und Entwickler:innen, interessierte Öffentlichkeit
B54: Glossar
B55: a | C55: Jahr
B56: BGF | C56: Bruttogrundfläche, Summe aller Grundflächen des Gebäudes
B57: CO2e | C57: Kohlendioxid-Äquivalent, beschreibt das Treibhausgaspotenzial einer Aktivität
B58: EFH | C58: Einfamilienhaus
B59: MFH | C59: Mehrfamilienhaus
B60: MWB | C60: Mehrgeschossiger Wohnbau
B61: NE | C61: Nutzeinheit
B62: PEB | C62: Primärenergiebedarf
B63: WP | C63: Wärmepumpe
B65: Rückfragen
B66: Lorenz Strimitzer | F66: Melanie Harrer
B67: Österreichiche Energieagentur | F67: Österreichische Energieagentur
B68: Mariahilfer Straße 136 | 1150 Wien | Österreich | F68: Mariahilfer Straße 136 | 1150 Wien | Österreich
B69: T. +43 (0)1 586 15 24-135 | F69: T. +43 (0)1 586 15 24-649 202
B70: lorenz.strimitzer@energyagency.at | F70: melanie.harrer@energyagency.at

Sheet Daten
C3: Daten Eingabe | P3: Information
D7: Gebäudekategorie | G7: bitte auswählen | P7: Auswahl aus Einfamilienhaus (1-2 NE), Mehrfamilienhaus und Reihenhaus (2-10 NE), Mehrgeschossiger, großvolumiger Wohnbau (ab 11 NE), NE = Nutzeinheiten
D10: Bauperiode Bestandsgebäude | G10: bitte auswählen | P10: Auswahl der Bauperiode zwischen bis 1918; 1918-1944; 1945-1960; 1961-1990; ab 1991
D13: Bruttogrundfläche [m²] | G13: 0 | P13: Angabe der Bruttogrundfläche ist die Summe aller Grundflächen des Gebäudes
D16: Wärmebereitstellungssystem Bestandsgebäude | G16: bitte auswählen | P16: Auswahl aus Erdgas; Erdgas Brennwert; Heizöl; Holz; Fernwärme Erneuerbar; Fernwärme Österreich-Mix, Wärmepumpe (hier: Luft-WP)
D19: Wärmebereitstellungssystem nach Sanierung bzw. Neubau | G19: bitte auswählen | P19: Auswahl aus Holz, Fernwärme Erneuerbar, Fernwärme Österreich-Mix (Annahme: 50 % erneuerbar), Wärmepumpe (hier: Luft-WP)
D22: Dämmaterial für Sanierung bzw. Neubau | G22: bitte auswählen | P22: Dämmaterial für Sanierung und Neubau; Auswahl zwischen standardisierter Dämmung aus EPS oder aus ökologischer Dämmung (hier: Hanf)
D25: Nutzungsdauer Gebäude ab Sanierung bzw. Neubau/Heizungstausch | G25: 30 | P25: Nutzungsdauer des Gebäudes in Jahren; Standardwert: 30 Jahre - Annahme zur Nutzung bis zur nächsten Sanierung bzw. Lebensdauer des Heizsystems
G31: Jetzt berechnen!
G34: Genauere Daten? Hier geht’s zur Parameteranpassung

Sheet Grafik und Ergebnisse
B2: Ergebnisse: Ökologischer Rucksack
B11: Ökologischer Rucksack: CO2e-Emissionen | R11: Ökologischer Rucksack: Graue Energie
C14: ="Unter Berücksichtigung des Lebenszyklus des Gebäudes und einer Nutzungsdauer von " & INT(Daten!G25) & " Jahren werden durch die Sanierung " & INT('Grafik und Ergebnisse'!F38) & " Tonnen CO2e verursacht." ->  | S14: ="Unter Berücksichtigung des Lebenszyklus des Gebäudes und einer Nutzungsdauer von " & INT(Daten!G25) & " Jahren werden durch die Sanierung " & INT(V38) & " MWh Energie eingesetzt." -> 
C15: ="Durch den Neubau entstehen " & INT('Grafik und Ergebnisse'!G38) & " Tonnen CO2e." ->  | S15: ="Für den Neubau werden " & INT('Grafik und Ergebnisse'!W38) & " MWh Energie benötigt." -> 
C16: ="Der 'versteckte' Ökologische Rucksack durch die CO2 Emissionen der Bausubstanz des Gebäudes beträgt " & INT(F36) & " Tonnen CO2e für die Sanierung, und " & INT(G36) & " Tonnen CO2e für den Neubau." ->  | S16: ="Der 'versteckte' Ökologische Rucksack durch die graue Energie der Bausubstanz des Gebäudes beträgt " & INT(V36) & " MWh für die Sanierung, und " & INT(W36) & " MWh für den Neubau." -> 
C17: ="Umgerechnet sind das: " -> Umgerechnet sind das: | S17: ="Umgerechnet sind das: " -> Umgerechnet sind das:
C20: CO2e- | S20: Graue
C21: Emissionen | S21: Energie
C22: Bausubstanz | S22: Bausubstanz
C23: Sanierung | E23: =INT(F36*1000/21/100) & " Bäume" ->  | G23: =TEXT(F36*1000000/164, "### ### ##0") & " km" ->  | I23: =INT(F36/1.1) & " Flugreisen" ->  | S23: Sanierung | U23: =INT(V36*1000/3500) & " Haushalte" ->  | W23: =TEXT(V36*1000/0.15,"### ### ##0") & " km" ->  | Y23: =TEXT(V36*1000/1.5, "### ### ##0") & " h Backofen" -> 
C26: CO2e- | S26: Graue
C27: Emissionen | S27: Energie
C28: Bausubstanz | S28: Bausubstanz
C29: Neubau | E29: =INT(G36*1000/21/100) & " Bäume" ->  | G29: =TEXT(G36*1000000/164, "### ### ##0") & " km" ->  | I29: =INT(G36/1.1) & " Flugreisen" ->  | S29: Neubau | U29: =INT(W36*1000/3500) & " Haushalte" ->  | W29: =TEXT(W36*1000/0.15, "### ### ##0") & " km" ->  | Y29: =TEXT(W36*1000/1.5, "### ### ##0") & " h Backofen" -> 
C33: THG-Emissionen in t CO2e | I33: Anteil Emissionen in % | S33: Primärenergiebedarffossil in MWh | Y33: Anteil PEBfossil in %
E35: ='Kalk Ergebnisse'!C14 -> Bestand | F35: ='Kalk Ergebnisse'!D14 -> Sanierung | G35: ='Kalk Ergebnisse'!E14 -> Neubau | K35: Bestand | L35: Sanierung | M35: Neubau | U35: Bestand | V35: Sanierung | W35: Neubau | AA35: Bestand | AB35: Sanierung | AC35: Neubau
C36: ='Kalk Ergebnisse'!B15 -> Bausubstanz | E36: ='Kalk Ergebnisse'!C15 ->  | F36: ='Kalk Ergebnisse'!D15 ->  | G36: ='Kalk Ergebnisse'!E15 ->  | I36: Bausubstanz | K36: =E36/$E$38 ->  | L36: =F36/$F$38 ->  | M36: =G36/$G$38 ->  | S36: Bausubstanz | U36: ='Kalk Ergebnisse'!C27 ->  | V36: ='Kalk Ergebnisse'!D27 ->  | W36: ='Kalk Ergebnisse'!E27 ->  | Y36: Bausubstanz | AA36: =U36/$U$38 ->  | AB36: =V36/$V$38 ->  | AC36: =W36/$W$38 -> 
C37: Wärme- und Stromversorgung | E37: ='Kalk Ergebnisse'!C16 -> 0 | F37: ='Kalk Ergebnisse'!D16 -> 0 | G37: ='Kalk Ergebnisse'!E16 -> 0 | I37: Wärme- und Stromversorgung | K37: =E37/$E$38 ->  | L37: =F37/$F$38 ->  | M37: =G37/$G$38 ->  | S37: Wärme- und Stromversorgung | U37: ='Kalk Ergebnisse'!C28 -> 0 | V37: ='Kalk Ergebnisse'!D28 -> 0 | W37: ='Kalk Ergebnisse'!E28 -> 0 | Y37: Wärme- und Stromversorgung | AA37: =U37/$U$38 ->  | AB37: =V37/$V$38 ->  | AC37: =W37/$W$38 -> 
C38: Summe | E38: =SUM(E36:E37) ->  | F38: =SUM(F36:F37) ->  | G38: =SUM(G36:G37) ->  | I38: Summe | K38: =SUM(K36:K37) ->  | L38: =SUM(L36:L37) ->  | M38: =SUM(M36:M37) ->  | S38: Summe | U38: =SUM(U36:U37) ->  | V38: =SUM(V36:V37) ->  | W38: =SUM(W36:W37) ->  | Y38: Summe | AA38: =SUM(AA36:AA37) ->  | AB38: =SUM(AB36:AB37) ->  | AC38: =SUM(AC36:AC37) -> 
C61: ="* Für eine Nutzungsdauer von " & Daten!G25 & " Jahren" -> * Für eine Nutzungsdauer von 30 Jahren | J61: ="* Für eine Nutzungsdauer von " & Daten!G25 & " Jahren" -> * Für eine Nutzungsdauer von 30 Jahren | S61: ="* Für eine Nutzungsdauer von " & Daten!G25 & " Jahren" -> * Für eine Nutzungsdauer von 30 Jahren | Z61: ="* Für eine Nutzungsdauer von " & Daten!G25 & " Jahren" -> * Für eine Nutzungsdauer von 30 Jahren
B65: Weiterführende Informationen:
B66: Dämmstoffbroschüre | D66: Die Dämmstoffbroschüre präsentiert alle gängigen Dämmstoffe. Dämmen ist sowohl beim Neubau als auch in der Sanierung ein wichtiges Thema für energieeffizientes Bauen.
B67: Baubook | D67: Baubook ist ein Web-Portal für Bauprodukte, Bauteile und Tools, das ökologisches und gesundes Bauen vereinfacht. Die Webplattform liefert validierte Baustoffdaten für die Berechnung von Energie- und Ökologiekennzahlen.
B68: klimaaktiv Gebäude Standard | D68: Der klimaaktiv Gebäudestandard ist österreichweit das bekannteste Bewertungssystem für die Nachhaltigkeit von Gebäuden mit besonderem Fokus auf Energieeffizienz, Klimaschutz und Ressourceneffizienz. Gebäude in klimaaktiv Qualität garantieren die Einhaltung hochwertiger Standards.
B69: Heizungsmatrix | D69: Mit der Heizungs-Matrix können Sie feststellen, welche Heizungssysteme für Ihr Haus empfehlenswert sind. Bewegen Sie den Mauszeiger über die Tabelle, um bestimmte Spalten oder Zeilen auszuwählen und Informationen anzuzeigen!
B70: Hexit | D70: klimaaktiveinen hat den Heizrechner "Hexit" (Heizöl exit) entwickelt, der neben einem Wirtschaftlichkeitsvergleich auch ökologische Faktoren in die Gesamtbetrachtung einfließen lässt.
B71: Raus aus Öl und Gas | D71: Die Förderungsaktion „raus aus Öl und Gas“ unterstützt Haushalte und Betriebe beim Kesseltausch und fördert so die Sanierungsoffensive des Bundes.

Sheet Parameter
B2: Parameter-Anpassung
B4: In diesem Abschnitt können die Parameter zur Berechnung mit eigenen Werten angepasst werden, da es sich bei den Default-Werten um Standardwerte handelt. Die spezfisichen Daten für Ihr Gebäude können beispielsweise für die Materialzusammensetzung aus einem Berechnungstool (z.B. GEMIS) oder für das Energiesystem aus Ihrem Energieausweis entnommen werden. Beim Klick auf die Schaltfläche "Default Werte zurück setzen" werden die Eingabe Felder auf die Default Werte zurück gesetzt.
B9: Parameter-Anpassung Bausubstanz [kg]
C11: Emissionsfaktor [kg CO2e/kg] | E11: PEB fossil [kWh/kg] | I11: Dichte [kg/m³]
B12: Material | C12: Eingabe | D12: Default | E12: Eingabe | F12: Default | H12: Material | I12: Eingabe | J12: Default
B13: Holz | C13: =D13 -> 0.285 | D13: ='Kalk Bausubstanz'!I33 -> 0.285 | E13: =F13 -> 1.280555556 | F13: ='Kalk Bausubstanz'!I43 -> 1.280555556 | H13: Holz | I13: =J13 -> 529 | J13: ='Kalk Bausubstanz'!M33 -> 529
B14: Ziegel | C14: =D14 -> 0.237 | D14: ='Kalk Bausubstanz'!I34 -> 0.237 | E14: =F14 -> 1.136111111 | F14: ='Kalk Bausubstanz'!I44 -> 1.136111111 | H14: Ziegel | I14: =J14 -> 700 | J14: ='Kalk Bausubstanz'!M34 -> 700
B15: Beton | C15: 0.0894 | D15: ='Kalk Bausubstanz'!I35 -> 0.0894 | E15: 0.1188888889 | F15: ='Kalk Bausubstanz'!I45 -> 0.1188888889 | H15: Beton | I15: 2400 | J15: ='Kalk Bausubstanz'!M35 -> 2400
B16: Stahl | C16: 1 | D16: ='Kalk Bausubstanz'!I36 -> 1 | E16: 4.166666667 | F16: ='Kalk Bausubstanz'!I46 -> 4.166666667 | H16: Stahl | I16: 7900 | J16: ='Kalk Bausubstanz'!M36 -> 7900
B17: Glas | C17: 1.1 | D17: ='Kalk Bausubstanz'!I37 -> 1.1 | E17: 4.194444444 | F17: ='Kalk Bausubstanz'!I47 -> 4.194444444 | H17: Glas | I17: 2500 | J17: ='Kalk Bausubstanz'!M37 -> 2500
B18: Stahlbeton | C18: 0.134 | D18: ='Kalk Bausubstanz'!I38 -> 0.134 | E18: 0.1561111111 | F18: ='Kalk Bausubstanz'!I48 -> 0.1561111111 | H18: Stahlbeton | I18: 2400 | J18: ='Kalk Bausubstanz'!M38 -> 2400
B21: Parameter-Anpassung Dämmung [kg]
C23: Emissionsfaktor [kg CO2e/m³] | E23: PEB fossil [kWh/m³]
B24: Material | C24: Eingabe | D24: Default | E24: Eingabe | F24: Default
B25: Standard Dämmung | C25: =D25 -> 67 | D25: ='Kalk Dämmung'!L18 -> 67 | E25: =F25 -> 633.3333333 | F25: ='Kalk Dämmung'!L25 -> 633.3333333
B26: Ökologische Dämmung | C26: =D26 -> 60.42 | D26: ='Kalk Dämmung'!L19 -> 60.42 | E26: =F26 -> 323 | F26: ='Kalk Dämmung'!L26 -> 323
B29: Parameter-Anpassung Nutzungsphase Bestand
B31: Wärmebereitstellungssystem/ Primärenergiebedarf | C31: Emissionen [kg CO2e/m² BGF] | E31: PEB fossil [kWh/m² BGF]
C32: Eingabe | D32: Default | E32: Eingabe | F32: Default
B33: =Daten!G16 -> bitte auswählen | C33: =D33 -> 0 | D33: =SUMIFS(W_Bestand[Emissionen '[kgCO2/m²']],W_Bestand[Typ],Daten!G7,W_Bestand[Bauperiode],Daten!G10,W_Bestand[Heizsystem],Daten!G16) -> 0 | E33: =F33 -> 0 | F33: =SUMIFS(W_Bestand[PEB fossil '[kWh/m²']],W_Bestand[Typ],Daten!G7,W_Bestand[Bauperiode],Daten!G10,W_Bestand[Heizsystem],Daten!G16) -> 0
B36: Parameter-Anpassung Nutzungsphase Sanierung bzw. Neubau
B38: Wärmebereitstellungssystem/ Primärenergiebedarf | D38: Emissionen [kg CO2e/m² BGF] | F38: PEB fossil [kWh/m² BGF]
D39: Eingabe | E39: Default | F39: Eingabe | G39: Default
B40: Sanierung | C40: =Daten!G19 -> bitte auswählen | D40: =E40 -> 0 | E40: =SUMIFS(W_Neu[Emissionen '[kgCO2/m²']],W_Neu[Typ],Daten!G7,W_Neu[Bauperiode],Daten!G10,W_Neu[Heizsystem],Daten!G19) -> 0 | F40: =G40 -> 0 | G40: =SUMIFS(W_Neu[PEB fossil '[kWh/m²']],W_Neu[Typ],Daten!G7,W_Neu[Bauperiode],Daten!G10,W_Neu[Heizsystem],Daten!G19) -> 0
B41: Neubau | C41: =Daten!G19 -> bitte auswählen | D41: =E41 -> 0 | E41: =SUMIFS(W_Neu[Emissionen '[kgCO2/m²']],W_Neu[Typ],Daten!G7,W_Neu[Bauperiode],Listen!B9,W_Neu[Heizsystem],Daten!G19) -> 0 | F41: =G41 -> 0 | G41: =SUMIFS(W_Neu[PEB fossil '[kWh/m²']],W_Neu[Typ],Daten!G7,W_Neu[Bauperiode],Listen!B9,W_Neu[Heizsystem],Daten!G19) -> 0
B45: Jetzt berechnen!

Sheet Methodik
B2: Methodik
B4: Hintergrund
B6: Sanierung oder Neubau? Betrachtet man ein Gebäude anhand seiner Energieeffizienz wird der Neubau der Sanierung oft vorgezogen. Aus ökologischer Sichtweise kann eine Sanierung allerdings durchwegs klimafreundlicher sein als der Abriss und Neubau des Gebäudes. Immerhin wurden durch den Bau des Gebäudes bereits Energie verbraucht und klimaschädlcihe Treibhausgas-Emissionen (CO2e) verursacht. Dieses Tool soll diese "versteckten" Verbräuche (ökologischer Rucksack) sichtbar machen um die Gebäude über ihren Lebensweg vergleichen zu können. Da es sich hierbei um Standardwerte handelt sollten die Ergebnisse jedoch als Abschätzung verstanden werden. In diesem Tool wird der ökologische Rucksack mittels der CO2e-Emissionen und der grauen Energie des Gebäudes dargestellt. Als ökologischer Rucksack werden die gesamten Inputs bezeichnet, welche im Laufe des Lebensweges von Produkten und Materialien aufgewendet wird. Der Lebenszyklus eines Produktes oder Materials beinhaltet dabei die Prozesse der Rohstoffgewinnung, Herstellung, Verarbeitung, Instandhaltung, Entsorgung, und Transport. Treibhausgas-Emissionen beschreiben das gesamte Treibhausgaspotenzial einer Aktivität. Dies kann auf CO2-Äquivalente umgerechnet werden. Als graue Energie wird die gesamte Primärenergie bezeichnet, welche im Laufe des Lebensweges von Produkten und Materialien aufgewendet wird.
B21: Zielgruppe
B23: Zielgruppe dieses Tools sind vor allem Planer:innen und Entwickler:innen, sowie die interessierte Öffentlichkeit.
B26: Ziel
B28: Ziel ist es, die 'versteckten' Emissionen und die 'versteckte' Energie eines Gebäudes sichtbar zu machen um das Gebäude über den Lebenszyklus vergleichen zu können.
B32: Methode
B34: Der Lebenszyklus der Gebäude umfasst die Herstellungsphase, die Nutzungsphase und die Entsorgungsphase (siehe Grafik unten, berücksichtigte Phasen in blau). Es werden die Materialien der Bausubstanz und der Dämmung über ihren Lebensweg berücksichtigt. Für einen besseren Vergleich wird die Nutzungsphase des Gebäudes mit dem jeweilig gewählten Heizsystem dargestellt. Grundlegend wurde angenommen, das die Größe des Gebäudes in der Sanierung und im Neubau unverändert bleibt. Zubauten werden damit nicht berücksichtigt. Die Gebäudetypen entsprechen den Standards der jeweiligen Bauperiode. Die Zusammensetzung der Bausubstanz beruht auf einer Berechnung der österreichischen Energieagentur nach dem österreichischen Gebäudestandard (Tabula). Die Bausubstanz umfasst Wände, Decken, Böden und Fenster. In Sanierung und Neubau wird zudem das Material für die Dämmung berücksichtigt. Bei der Standard Dämmung wurde EPS, bei der ökologischen Dämmung Hanf als Dämmmaterial zugrunde gelegt. Das Material für das Heizsystem (z.B. Kessel), die Haustechnik und die bauliche Veränderung der Sanierung (excl. Dämmung) befinden sich außerhalb der Systemgrenze. Damit wird auch die Änderung des Verteilsystems (z.B. bei Umstellung auf Wärmepumpe) aufgrund der vereinfachten Berechnung nicht berücksichtigt. Zur besseren Einordnung wird auch die Betriebsenergie (rote Energie) aus der Nutzung des Gebäudes dargestellt. Die Nutzungsphase umfasst den gesamten Energiebedarf des Gebäudes (inkl. Strom). Hier wurden für die jeweiligen Gebäudetypen und Baujahre Energieausweise mit dem entsprechenden Heizungssystem berechnet. Hierbei handelt es sich um eine Abschätzung, da die tatsächlichen Energieverbräuche stark vom individuellen Nutzungsverhalten beeinflusst werden. Die Größen und Volumina der Gebäude basieren auf der österreichischen Gebäudetypologie. Die Daten für die Emissionen und den Primärenergiebedarffossilfossil stammen aus diesen Energieausweisen. Als Berechnungstool wurde die Software ETU Gebäudeprofi Duo 3D mit Standard U-Werten verwendet. Für die Dämmung in Sanierung und Neubau wurden gängige Dämmstärken von ca. 20 cm angenommen. Fenster wurden um Isolierglas verstärkt. Für den Neubau wurde ein Gebäude der aktuellsten Bauperiode innerhalb der gewählten Gebäudekategorie angenommen.Für die Nutzungsdauer des Gebäudes (bis zur nächsten Sanierung) wurde der Standardwert auf 30 Jahre gesetzt, da dies als durchschnittliche Lebensdauer des gewählten Heizsystems angenommen wurde. Bei einer länger gewählten Nutzungsdauer wird das jeweilig gewählte Wärmebereitstellungssystem für Sanierung bzw. Neubau über die gesamte Nutzungsdauer angenommen. Für die Berechnung der Emissionen werden Emissionsfaktoren in kg CO2 Äquivalent (CO2e) für den Lebenszyklus des jeweiligen Produktes verwendet (CML Global Warming potential 100 years exckl. biogenic carbon). Bei der Berechnung der grauen Energie wurde der Primärenergiebedarf (PEB) aus fossilen Energieträgern herangezogen. Die Emissionsfaktoren und der Primärenergiebedarffossil der Materialien stammen aus der Ökobilanz-Software Gabi, und hier aus den Datenbanken ©Gabi Professional und ©ecoinvent.

Sheet Kalk Ergebnisse (hidden)
B2: Kalkulation Ergebnisse
B4: Nutzungsdauer | D4: =Daten!G25 -> 30
B5: BGF | D5: =Daten!G13 -> 0
B7: Kalkulation Emissionen [t CO2e]
C9: Bestand | D9: Sanierung | E9: Neubau | G9: Überprüfung Einzelwerte [kg CO2]
B10: Bausubstanz: | C10: =(INDEX('Kalk Bausubstanz'!$C$34:$E$38, MATCH(Daten!G10,'Kalk Bausubstanz'!B34:B38,0), MATCH(Daten!G7,'Kalk Bausubstanz'!C33:E33,0))*'Kalk Ergebnisse'!D5)/1000 ->  | D10: =C10 ->  | E10: =C10+(INDEX('Kalk Bausubstanz'!C34:E38,MATCH('Kalk Bausubstanz'!B38,'Kalk Bausubstanz'!B34:B38,0),MATCH(Daten!G7,'Kalk Bausubstanz'!C33:E33,0))*'Kalk Ergebnisse'!D5)/1000 ->  | G10: =C10/D5*1000 ->  | I10: =(E10-C10)/D5*1000 -> 
B11: Dämmung: | C11: 0 | D11: =(SUMIFS('Kalk Dämmung'!E18:E20,'Kalk Dämmung'!B18:B20,Daten!G7)*SUMIFS('Kalk Dämmung'!K18:K19,'Kalk Dämmung'!I18:I19,Daten!G22)*D5)/1000 -> 0 | E11: =D11 -> 0 | H11: =(D11/D5)/SUMIFS('Kalk Dämmung'!E18:E20,'Kalk Dämmung'!B18:B20,Daten!G7)*1000 -> 
B12: Nutzungsphase: | C12: =(Parameter!C33*D5*D4)/1000 -> 0 | D12: =(Parameter!D40*D5*D4)/1000 -> 0 | E12: =(Parameter!D41*D5*D4)/1000 -> 0 | G12: =C12/$D$5/$D$4*1000 ->  | H12: =D12/$D$5/$D$4*1000 ->  | I12: =E12/$D$5/$D$4*1000 -> 
C14: Bestand | D14: Sanierung | E14: Neubau | H14: Sanierung | I14: Neubau
B15: Bausubstanz | C15: =(C10+C11) ->  | D15: =(D10+D11) ->  | E15: =(E10+E11) ->  | G15: Bausubstanz | H15: =D15 ->  | I15: =E15 -> 
B16: Nutzungsphase | C16: =C12 -> 0 | D16: =D12 -> 0 | E16: =E12 -> 0 | G16: Nutzungsphase | H16: =D16 -> 0 | I16: =E16 -> 0
G17: Summe | H17: =SUM(H15:H16) ->  | I17: =SUM(I15:I16) -> 
B19: Kalkulation PEB fossil [MWh]
C21: Bestand | D21: Sanierung | E21: Neubau | G21: Überprüfung Einzelwerte [kWh]
B22: Bausubstanz: | C22: =(INDEX('Kalk Bausubstanz'!C44:E48, MATCH(Daten!G10,'Kalk Bausubstanz'!B44:B48,0), MATCH(Daten!G7,'Kalk Bausubstanz'!C43:E43,0))*'Kalk Ergebnisse'!D5)/1000 ->  | D22: =C22 ->  | E22: =C22+(INDEX('Kalk Bausubstanz'!C44:E48,MATCH('Kalk Bausubstanz'!B48,'Kalk Bausubstanz'!B44:B48,0),MATCH(Daten!G7,'Kalk Bausubstanz'!C43:E43,0))*'Kalk Ergebnisse'!D5)/1000 ->  | G22: =C22/D5*1000 ->  | I22: =(E22-C22)/D5*1000 -> 
B23: Dämmung: | C23: 0 | D23: =(SUMIFS('Kalk Dämmung'!E18:E20,'Kalk Dämmung'!B18:B20,Daten!G7)*SUMIFS('Kalk Dämmung'!K25:K26,'Kalk Dämmung'!I25:I26,Daten!G22)*D5)/1000 -> 0 | E23: =D23 -> 0 | H23: =D23/D5/SUMIFS('Kalk Dämmung'!E18:E20,'Kalk Dämmung'!B18:B20,Daten!G7)*1000 -> 
B24: Nutzungsphase: | C24: =Parameter!E33*D5*D4/1000 -> 0 | D24: =Parameter!F40*D5*D4/1000 -> 0 | E24: =Parameter!F41*D5*D4/1000 -> 0 | G24: =C24/$D$5/$D$4*1000 ->  | H24: =D24/$D$5/$D$4*1000 ->  | I24: =E24/$D$5/$D$4*1000 -> 
C26: Bestand | D26: Sanierung | E26: Neubau | H26: Sanierung | I26: Neubau
B27: Bausubstanz | C27: =(C22+C23) ->  | D27: =(D22+D23) ->  | E27: =(E22+E23) ->  | G27: Bausubstanz | H27: =D27 ->  | I27: =E27 -> 
B28: Nutzungsphase | C28: =C24 -> 0 | D28: =D24 -> 0 | E28: =E24 -> 0 | G28: Nutzungsphase | H28: =D28 -> 0 | I28: =E28 -> 0
G29: Summe | H29: =SUM(H27:H28) ->  | I29: =SUM(I27:I28) -> 

Sheet Kalk Nutz_Bestand (hidden)
B2: Kalkulation Nutzungsphase Bestand je m² BGF
B5: Kürzel | C5: Typ | D5: Bauperiode | E5: Heizsystem | F5: Emissionen [kgCO2/m²] | G5: PEB fossil [kWh/m²]
B6: EFH | C6: Wohngebäude mit 1-2 Nutzeinheiten | D6: 1919-1944 | E6: Erdgas | F6: 100.401 | G6: 496.8
B7: EFH | C7: Wohngebäude mit 1-2 Nutzeinheiten | D7: 1919-1944 | E7: Erdgas Brennwert | F7: 95.658 | G7: 473.3
B8: EFH | C8: Wohngebäude mit 1-2 Nutzeinheiten | D8: 1919-1944 | E8: Heizöl | F8: 135.926 | G8: 543.8
B9: EFH | C9: Wohngebäude mit 1-2 Nutzeinheiten | D9: 1919-1944 | E9: Holz | F9: 10.443 | G9: 67.9
B10: EFH | C10: Wohngebäude mit 1-2 Nutzeinheiten | D10: 1919-1944 | E10: Fernwärme Erneuerbar | F10: 22.045 | G10: 117.7
B11: EFH | C11: Wohngebäude mit 1-2 Nutzeinheiten | D11: 1919-1944 | E11: Fernwärme Österreich-Mix | F11: =0.5*22.045+0.5*103.822 -> 62.9335 | G11: =0.5*117.7+0.5*492.5 -> 305.1
B12: EFH | C12: Wohngebäude mit 1-2 Nutzeinheiten | D12: 1919-1944 | E12: Wärmepumpe | F12: 47.692 | G12: 228.1
B13: EFH | C13: Wohngebäude mit 1-2 Nutzeinheiten | D13: 1945-1960 | E13: Erdgas | F13: 111.464 | G13: 551.7
B14: EFH | C14: Wohngebäude mit 1-2 Nutzeinheiten | D14: 1945-1960 | E14: Erdgas Brennwert | F14: 106.222 | G14: 525.7
B15: EFH | C15: Wohngebäude mit 1-2 Nutzeinheiten | D15: 1945-1960 | E15: Heizöl | F15: 150.17 | G15: 599.3
B16: EFH | C16: Wohngebäude mit 1-2 Nutzeinheiten | D16: 1945-1960 | E16: Holz | F16: 8.868 | G16: 62
B17: EFH | C17: Wohngebäude mit 1-2 Nutzeinheiten | D17: 1945-1960 | E17: Fernwärme Erneuerbar | F17: 24.152 | G17: 129.3
B18: EFH | C18: Wohngebäude mit 1-2 Nutzeinheiten | D18: 1945-1960 | E18: Fernwärme Österreich-Mix | F18: =0.5*24.152+0.5*115.767 -> 69.9595 | G18: =0.5*129.3+0.5*549.2 -> 339.25
B19: EFH | C19: Wohngebäude mit 1-2 Nutzeinheiten | D19: 1945-1960 | E19: Wärmepumpe | F19: 52.766 | G19: 252.4
B20: EFH | C20: Wohngebäude mit 1-2 Nutzeinheiten | D20: 1961-1990 | E20: Erdgas | F20: 81.666 | G20: 404
B21: EFH | C21: Wohngebäude mit 1-2 Nutzeinheiten | D21: 1961-1990 | E21: Erdgas Brennwert | F21: 77.777 | G21: 384.7
B22: EFH | C22: Wohngebäude mit 1-2 Nutzeinheiten | D22: 1961-1990 | E22: Heizöl | F22: 110.421 | G22: 442.5
B23: EFH | C23: Wohngebäude mit 1-2 Nutzeinheiten | D23: 1961-1990 | E23: Holz | F23: 9.315 | G23: 59
B24: EFH | C24: Wohngebäude mit 1-2 Nutzeinheiten | D24: 1961-1990 | E24: Fernwärme Erneuerbar | F24: 18.543 | G24: 98.5
B25: EFH | C25: Wohngebäude mit 1-2 Nutzeinheiten | D25: 1961-1990 | E25: Fernwärme Österreich-Mix | F25: =0.5*18.543+0.5*83.966 -> 51.2545 | G25: =0.5*98.5+0.5*398.4 -> 248.45
B26: EFH | C26: Wohngebäude mit 1-2 Nutzeinheiten | D26: 1961-1990 | E26: Wärmepumpe | F26: =AVERAGE(12.788, 10.607) -> 11.6975 | G26: =AVERAGE(61.2, 50.7) -> 55.95
B27: EFH | C27: Wohngebäude mit 1-2 Nutzeinheiten | D27: ab 1991 | E27: Erdgas | F27: 38.163 | G27: 188.3
B28: EFH | C28: Wohngebäude mit 1-2 Nutzeinheiten | D28: ab 1991 | E28: Erdgas Brennwert | F28: 36.366 | G28: 179.4
B29: EFH | C29: Wohngebäude mit 1-2 Nutzeinheiten | D29: ab 1991 | E29: Heizöl | F29: 50.201 | G29: 203.3
B30: EFH | C30: Wohngebäude mit 1-2 Nutzeinheiten | D30: ab 1991 | E30: Holz | F30: 6.777 | G30: 38.6
B31: EFH | C31: Wohngebäude mit 1-2 Nutzeinheiten | D31: ab 1991 | E31: Fernwärme Erneuerbar | F31: 10.778 | G31: 55.9
B32: EFH | C32: Wohngebäude mit 1-2 Nutzeinheiten | D32: ab 1991 | E32: Fernwärme Österreich-Mix | F32: =0.5*10.778+0.5*39.909 -> 25.3435 | G32: =0.5*55.9+0.5*189.4 -> 122.65
B33: EFH | C33: Wohngebäude mit 1-2 Nutzeinheiten | D33: ab 1991 | E33: Wärmepumpe | F33: 17.858 | G33: 85.4
B34: EFH | C34: Wohngebäude mit 1-2 Nutzeinheiten | D34: bis 1918 | E34: Erdgas | F34: 100.401 | G34: 496.8
B35: EFH | C35: Wohngebäude mit 1-2 Nutzeinheiten | D35: bis 1918 | E35: Erdgas Brennwert | F35: 95.658 | G35: 473.3
B36: EFH | C36: Wohngebäude mit 1-2 Nutzeinheiten | D36: bis 1918 | E36: Heizöl | F36: 135.926 | G36: 543.8
B37: EFH | C37: Wohngebäude mit 1-2 Nutzeinheiten | D37: bis 1918 | E37: Holz | F37: 10.443 | G37: 67.9
B38: EFH | C38: Wohngebäude mit 1-2 Nutzeinheiten | D38: bis 1918 | E38: Fernwärme Erneuerbar | F38: 22.045 | G38: 117.7
B39: EFH | C39: Wohngebäude mit 1-2 Nutzeinheiten | D39: bis 1918 | E39: Fernwärme Österreich-Mix | F39: =0.5*22.045+0.5*103.822 -> 62.9335 | G39: =0.5*117.7+0.5*492.5 -> 305.1
B40: EFH | C40: Wohngebäude mit 1-2 Nutzeinheiten | D40: bis 1918 | E40: Wärmepumpe | F40: 47.692 | G40: 228.1
B41: MFH | C41: Wohngebäude mit 3-9 Nutzeinheiten | D41: 1919-1944 | E41: Erdgas | F41: 86.591 | G41: 428.4
B42: MFH | C42: Wohngebäude mit 3-9 Nutzeinheiten | D42: 1919-1944 | E42: Erdgas Brennwert | F42: 82.702 | G42: 409.1
B43: MFH | C43: Wohngebäude mit 3-9 Nutzeinheiten | D43: 1919-1944 | E43: Heizöl | F43: 116.971 | G43: 468.6
B44: MFH | C44: Wohngebäude mit 3-9 Nutzeinheiten | D44: 1919-1944 | E44: Holz | F44: 8.018 | G44: 53.5
B45: MFH | C45: Wohngebäude mit 3-9 Nutzeinheiten | D45: 1919-1944 | E45: Fernwärme Erneuerbar | F45: 12.954 | G45: 78.4
B46: MFH | C46: Wohngebäude mit 3-9 Nutzeinheiten | D46: 1919-1944 | E46: Fernwärme Österreich-Mix | F46: =0.5*12.954+0.5*90.735 -> 51.8445 | G46: =0.5*78.4+0.5*430.5 -> 254.45
B47: MFH | C47: Wohngebäude mit 3-9 Nutzeinheiten | D47: 1919-1944 | E47: Wärmepumpe | F47: 45 | G47: 215.2
B48: MFH | C48: Wohngebäude mit 3-9 Nutzeinheiten | D48: 1945-1960 | E48: Erdgas | F48: 86.591 | G48: 428.4
B49: MFH | C49: Wohngebäude mit 3-9 Nutzeinheiten | D49: 1945-1960 | E49: Erdgas Brennwert | F49: 82.702 | G49: 409.1
B50: MFH | C50: Wohngebäude mit 3-9 Nutzeinheiten | D50: 1945-1960 | E50: Heizöl | F50: 116.971 | G50: 468.6
B51: MFH | C51: Wohngebäude mit 3-9 Nutzeinheiten | D51: 1945-1960 | E51: Holz | F51: 8.018 | G51: 53.5
B52: MFH | C52: Wohngebäude mit 3-9 Nutzeinheiten | D52: 1945-1960 | E52: Fernwärme Erneuerbar | F52: 12.954 | G52: 78.4
B53: MFH | C53: Wohngebäude mit 3-9 Nutzeinheiten | D53: 1945-1960 | E53: Fernwärme Österreich-Mix | F53: =0.5*12.954+0.5*90.735 -> 51.8445 | G53: =0.5*78.4+0.5*430.5 -> 254.45
B54: MFH | C54: Wohngebäude mit 3-9 Nutzeinheiten | D54: 1945-1960 | E54: Wärmepumpe | F54: 45 | G54: 215.2
B55: MFH | C55: Wohngebäude mit 3-9 Nutzeinheiten | D55: 1961-1990 | E55: Erdgas | F55: 92.533 | G55: 457.9
B56: MFH | C56: Wohngebäude mit 3-9 Nutzeinheiten | D56: 1961-1990 | E56: Erdgas Brennwert | F56: 88.383 | G56: 437.3
B57: MFH | C57: Wohngebäude mit 3-9 Nutzeinheiten | D57: 1961-1990 | E57: Heizöl | F57: 124.353 | G57: 497
B58: MFH | C58: Wohngebäude mit 3-9 Nutzeinheiten | D58: 1961-1990 | E58: Holz | F58: 8.259 | G58: 55.8
B59: MFH | C59: Wohngebäude mit 3-9 Nutzeinheiten | D59: 1961-1990 | E59: Fernwärme Erneuerbar | F59: 13.585 | G59: 82.6
B60: MFH | C60: Wohngebäude mit 3-9 Nutzeinheiten | D60: 1961-1990 | E60: Fernwärme Österreich-Mix | F60: =0.5*13.585+0.5*97.289 -> 55.437 | G60: =0.5*82.6+0.5*461.6 -> 272.1
B61: MFH | C61: Wohngebäude mit 3-9 Nutzeinheiten | D61: 1961-1990 | E61: Wärmepumpe | F61: 44.299 | G61: 211.9
B62: MFH | C62: Wohngebäude mit 3-9 Nutzeinheiten | D62: ab 1991 | E62: Erdgas | F62: 78.883 | G62: 390.1
B63: MFH | C63: Wohngebäude mit 3-9 Nutzeinheiten | D63: ab 1991 | E63: Erdgas Brennwert | F63: 75.218 | G63: 372
B64: MFH | C64: Wohngebäude mit 3-9 Nutzeinheiten | D64: ab 1991 | E64: Heizöl | F64: 105.44 | G64: 422.1
B65: MFH | C65: Wohngebäude mit 3-9 Nutzeinheiten | D65: ab 1991 | E65: Holz | F65: 9.362 | G65: 58.6
B66: MFH | C66: Wohngebäude mit 3-9 Nutzeinheiten | D66: ab 1991 | E66: Fernwärme Erneuerbar | F66: 12.223 | G66: 73.2
B67: MFH | C67: Wohngebäude mit 3-9 Nutzeinheiten | D67: ab 1991 | E67: Fernwärme Österreich-Mix | F67: =0.5*12.223+0.5*81.36 -> 46.7915 | G67: =0.5*73.2+0.5*386 -> 229.6
B68: MFH | C68: Wohngebäude mit 3-9 Nutzeinheiten | D68: ab 1991 | E68: Wärmepumpe | F68: 34.719 | G68: 166
B69: MFH | C69: Wohngebäude mit 3-9 Nutzeinheiten | D69: bis 1918 | E69: Erdgas | F69: 76.858 | G69: 380.2
B70: MFH | C70: Wohngebäude mit 3-9 Nutzeinheiten | D70: bis 1918 | E70: Erdgas Brennwert | F70: 73.374 | G70: 362.9
B71: MFH | C71: Wohngebäude mit 3-9 Nutzeinheiten | D71: bis 1918 | E71: Heizöl | F71: 102.898 | G71: 412
B72: MFH | C72: Wohngebäude mit 3-9 Nutzeinheiten | D72: bis 1918 | E72: Holz | F72: 9.143 | G72: 57.2
B73: MFH | C73: Wohngebäude mit 3-9 Nutzeinheiten | D73: bis 1918 | E73: Fernwärme Erneuerbar | F73: 12.02 | G73: 72
B74: MFH | C74: Wohngebäude mit 3-9 Nutzeinheiten | D74: bis 1918 | E74: Fernwärme Österreich-Mix | F74: =0.5*12.02+0.5*80.227 -> 46.1235 | G74: =0.5*72+0.5*380.7 -> 226.35
B75: MFH | C75: Wohngebäude mit 3-9 Nutzeinheiten | D75: bis 1918 | E75: Wärmepumpe | F75: 36.966 | G75: 176.8
B76: MWB | C76: Wohngebäude mit 10+ Nutzeinheiten | D76: 1919-1944 | E76: Erdgas | F76: 73.26 | G76: 362.3
B77: MWB | C77: Wohngebäude mit 10+ Nutzeinheiten | D77: 1919-1944 | E77: Erdgas Brennwert | F77: 70.099 | G77: 346.7
B78: MWB | C78: Wohngebäude mit 10+ Nutzeinheiten | D78: 1919-1944 | E78: Heizöl | F78: 97.182 | G78: 389.2
B79: MWB | C79: Wohngebäude mit 10+ Nutzeinheiten | D79: 1919-1944 | E79: Holz | F79: 7.41 | G79: 47.8
B80: MWB | C80: Wohngebäude mit 10+ Nutzeinheiten | D80: 1919-1944 | E80: Fernwärme Erneuerbar | F80: 11.771 | G80: 70.5
B81: MWB | C81: Wohngebäude mit 10+ Nutzeinheiten | D81: 1919-1944 | E81: Fernwärme Österreich-Mix | F81: =0.5*11.771+0.5*79.435 -> 45.603 | G81: =0.5*70.5+0.5*376.9 -> 223.7
B82: MWB | C82: Wohngebäude mit 10+ Nutzeinheiten | D82: 1919-1944 | E82: Wärmepumpe | F82: =36.55 -> 36.55 | G82: 174.8
B83: MWB | C83: Wohngebäude mit 10+ Nutzeinheiten | D83: 1945-1960 | E83: Erdgas | F83: 74.538 | G83: 368.7
B84: MWB | C84: Wohngebäude mit 10+ Nutzeinheiten | D84: 1945-1960 | E84: Erdgas Brennwert | F84: 71.437 | G84: 353.3
B85: MWB | C85: Wohngebäude mit 10+ Nutzeinheiten | D85: 1945-1960 | E85: Heizöl | F85: 98.709 | G85: 395.3
B86: MWB | C86: Wohngebäude mit 10+ Nutzeinheiten | D86: 1945-1960 | E86: Holz | F86: 7.404 | G86: 47.8
B87: MWB | C87: Wohngebäude mit 10+ Nutzeinheiten | D87: 1945-1960 | E87: Fernwärme Erneuerbar | F87: 11.967 | G87: 71.9
B88: MWB | C88: Wohngebäude mit 10+ Nutzeinheiten | D88: 1945-1960 | E88: Fernwärme Österreich-Mix | F88: 46.3965 | G88: 228.7
B89: MWB | C89: Wohngebäude mit 10+ Nutzeinheiten | D89: 1945-1960 | E89: Wärmepumpe | F89: 37.102 | G89: 177.4
B90: MWB | C90: Wohngebäude mit 10+ Nutzeinheiten | D90: 1961-1990 | E90: Erdgas | F90: 64.739 | G90: 320.1
B91: MWB | C91: Wohngebäude mit 10+ Nutzeinheiten | D91: 1961-1990 | E91: Erdgas Brennwert | F91: 61.932 | G91: 306.2
B92: MWB | C92: Wohngebäude mit 10+ Nutzeinheiten | D92: 1961-1990 | E92: Heizöl | F92: 86.159 | G92: 346.1
B93: MWB | C93: Wohngebäude mit 10+ Nutzeinheiten | D93: 1961-1990 | E93: Holz | F93: 7.072 | G93: 44.6
B94: MWB | C94: Wohngebäude mit 10+ Nutzeinheiten | D94: 1961-1990 | E94: Fernwärme Erneuerbar | F94: 10.87 | G94: 64.4
B95: MWB | C95: Wohngebäude mit 10+ Nutzeinheiten | D95: 1961-1990 | E95: Fernwärme Österreich-Mix | F95: 40.4955 | G95: 198.55
B96: MWB | C96: Wohngebäude mit 10+ Nutzeinheiten | D96: 1961-1990 | E96: Wärmepumpe | F96: 32.607 | G96: 155.9
B97: MWB | C97: Wohngebäude mit 10+ Nutzeinheiten | D97: ab 1991 | E97: Erdgas | F97: 22.174 | G97: 109.1
B98: MWB | C98: Wohngebäude mit 10+ Nutzeinheiten | D98: ab 1991 | E98: Erdgas Brennwert | F98: 21.745 | G98: 107
B99: MWB | C99: Wohngebäude mit 10+ Nutzeinheiten | D99: ab 1991 | E99: Heizöl | F99: 28.822 | G99: 118.2
B100: MWB | C100: Wohngebäude mit 10+ Nutzeinheiten | D100: ab 1991 | E100: Holz | F100: 5.443 | G100: 29.2
B101: MWB | C101: Wohngebäude mit 10+ Nutzeinheiten | D101: ab 1991 | E101: Fernwärme Erneuerbar | F101: 8.024 | G101: 40.8
B102: MWB | C102: Wohngebäude mit 10+ Nutzeinheiten | D102: ab 1991 | E102: Fernwärme Österreich-Mix | F102: 16.0025 | G102: 77.35
B103: MWB | C103: Wohngebäude mit 10+ Nutzeinheiten | D103: ab 1991 | E103: Wärmepumpe | F103: 11.68 | G103: 55.9
B104: MWB | C104: Wohngebäude mit 10+ Nutzeinheiten | D104: bis 1918 | E104: Erdgas | F104: 66.534 | G104: 329
B105: MWB | C105: Wohngebäude mit 10+ Nutzeinheiten | D105: bis 1918 | E105: Erdgas Brennwert | F105: 63.748 | G105: 315.2
B106: MWB | C106: Wohngebäude mit 10+ Nutzeinheiten | D106: bis 1918 | E106: Heizöl | F106: 87.886 | G106: 352.4
B107: MWB | C107: Wohngebäude mit 10+ Nutzeinheiten | D107: bis 1918 | E107: Holz | F107: 7.09 | G107: 44.9
B108: MWB | C108: Wohngebäude mit 10+ Nutzeinheiten | D108: bis 1918 | E108: Fernwärme Erneuerbar | F108: 11.121 | G108: 66.2
B109: MWB | C109: Wohngebäude mit 10+ Nutzeinheiten | D109: bis 1918 | E109: Fernwärme Österreich-Mix | F109: =0.5*11.121+0.5*72.083 -> 41.602 | G109: =0.5*66.2+0.5*342 -> 204.1
B110: MWB | C110: Wohngebäude mit 10+ Nutzeinheiten | D110: bis 1918 | E110: Wärmepumpe | F110: 33.389 | G110: 159.7

Sheet Kalk Nutz_Neu (hidden)
B2: Kalkulation Nutzungsphase Neu je m² BGF
B5: Kürzel | C5: Typ | D5: Bauperiode | E5: Heizsystem | F5: Emissionen [kgCO2/m²] | G5: PEB fossil [kWh/m²]
B6: EFH | C6: Wohngebäude mit 1-2 Nutzeinheiten | D6: bis 1918 | E6: Fernwärme Erneuerbar | F6: 8.231 | G6: 41.8
B7: EFH | C7: Wohngebäude mit 1-2 Nutzeinheiten | D7: bis 1918 | E7: Fernwärme Österreich-Mix | F7: =0.5*8.231+0.5*25.268 -> 16.7495 | G7: =0.5*42.8+0.5*120 -> 81.4
B8: EFH | C8: Wohngebäude mit 1-2 Nutzeinheiten | D8: bis 1918 | E8: Holz | F8: 6.01 | G8: 32.4
B9: EFH | C9: Wohngebäude mit 1-2 Nutzeinheiten | D9: bis 1918 | E9: Wärmepumpe | F9: =AVERAGE(12.901,11.688) -> 12.2945 | G9: =AVERAGE(61.7,51.1) -> 56.4
B10: EFH | C10: Wohngebäude mit 1-2 Nutzeinheiten | D10: 1945-1960 | E10: Fernwärme Erneuerbar | F10: 8.275 | G10: 42.2
B11: EFH | C11: Wohngebäude mit 1-2 Nutzeinheiten | D11: 1945-1960 | E11: Fernwärme Österreich-Mix | F11: =0.5*8.275+0.5*25.617 -> 16.946 | G11: =0.5*42.2+0.5*121.7 -> 81.95
B12: EFH | C12: Wohngebäude mit 1-2 Nutzeinheiten | D12: 1945-1960 | E12: Holz | F12: 5.583 | G12: 30.4
B13: EFH | C13: Wohngebäude mit 1-2 Nutzeinheiten | D13: 1945-1960 | E13: Wärmepumpe | F13: =AVERAGE(13.028, 10.778) -> 11.903 | G13: =AVERAGE(62.3, 51.5) -> 56.9
B14: EFH | C14: Wohngebäude mit 1-2 Nutzeinheiten | D14: 1961-1990 | E14: Fernwärme Erneuerbar | F14: 8.158 | G14: 41.5
B15: EFH | C15: Wohngebäude mit 1-2 Nutzeinheiten | D15: 1961-1990 | E15: Fernwärme Österreich-Mix | F15: =0.5*8.158+0.5*24.955 -> 16.5565 | G15: =0.5*41.5+0.5*118.5 -> 80
B16: EFH | C16: Wohngebäude mit 1-2 Nutzeinheiten | D16: 1961-1990 | E16: Holz | F16: 5.994 | G16: 32.3
B17: EFH | C17: Wohngebäude mit 1-2 Nutzeinheiten | D17: 1961-1990 | E17: Wärmepumpe | F17: =AVERAGE(12.788,10.607) -> 11.6975 | G17: =AVERAGE(61.2,50.7) -> 55.95
B18: EFH | C18: Wohngebäude mit 1-2 Nutzeinheiten | D18: 1919-1944 | E18: Fernwärme Erneuerbar | F18: 8.213 | G18: 41.8
B19: EFH | C19: Wohngebäude mit 1-2 Nutzeinheiten | D19: 1919-1944 | E19: Fernwärme Österreich-Mix | F19: =0.5*8.213+0.5*25.268 -> 16.7405 | G19: =0.5*41.8+0.5*120 -> 80.9
B20: EFH | C20: Wohngebäude mit 1-2 Nutzeinheiten | D20: 1919-1944 | E20: Holz | F20: 6.01 | G20: 32.4
B21: EFH | C21: Wohngebäude mit 1-2 Nutzeinheiten | D21: 1919-1944 | E21: Wärmepumpe | F21: 47.692 | G21: 228.1
B22: EFH | C22: Wohngebäude mit 1-2 Nutzeinheiten | D22: ab 1991 | E22: Fernwärme Erneuerbar | F22: 7.911 | G22: 40.2
B23: EFH | C23: Wohngebäude mit 1-2 Nutzeinheiten | D23: ab 1991 | E23: Fernwärme Österreich-Mix | F23: =0.5*7.911+0.5*23.563 -> 15.737 | G23: =0.5+40.2+0.5*111.9 -> 96.65
B24: EFH | C24: Wohngebäude mit 1-2 Nutzeinheiten | D24: ab 1991 | E24: Holz | F24: 5.535 | G24: 29.8
B25: EFH | C25: Wohngebäude mit 1-2 Nutzeinheiten | D25: ab 1991 | E25: Wärmepumpe | F25: =AVERAGE(10.274, 11.129) -> 10.7015 | G25: =AVERAGE(49.1,53.2) -> 51.15
B26: MFH | C26: Wohngebäude mit 3-9 Nutzeinheiten | D26: bis 1918 | E26: Fernwärme Erneuerbar | F26: 6.728 | G26: 36.2
B27: MFH | C27: Wohngebäude mit 3-9 Nutzeinheiten | D27: bis 1918 | E27: Fernwärme Österreich-Mix | F27: =0.5*6.728+0.5*25.63 -> 16.179 | G27: =0.5*36.2+0.5*121.7 -> 78.95
B28: MFH | C28: Wohngebäude mit 3-9 Nutzeinheiten | D28: bis 1918 | E28: Holz | F28: 5.642 | G28: 30.5
B29: MFH | C29: Wohngebäude mit 3-9 Nutzeinheiten | D29: bis 1918 | E29: Wärmepumpe | F29: 12.282 | G29: 58.7
B30: MFH | C30: Wohngebäude mit 3-9 Nutzeinheiten | D30: 1945-1960 | E30: Fernwärme Erneuerbar | F30: 6.701 | G30: 36
B31: MFH | C31: Wohngebäude mit 3-9 Nutzeinheiten | D31: 1945-1960 | E31: Fernwärme Österreich-Mix | F31: =0.5*6.701+0.5*25.351 -> 16.026 | G31: =0.5*36+0.5*120.4 -> 78.2
B32: MFH | C32: Wohngebäude mit 3-9 Nutzeinheiten | D32: 1945-1960 | E32: Holz | F32: 5.63 | G32: 30.4
B33: MFH | C33: Wohngebäude mit 3-9 Nutzeinheiten | D33: 1945-1960 | E33: Wärmepumpe | F33: 12.21 | G33: 58.4
B34: MFH | C34: Wohngebäude mit 3-9 Nutzeinheiten | D34: 1961-1990 | E34: Fernwärme Erneuerbar | F34: 6.694 | G34: 36
B35: MFH | C35: Wohngebäude mit 3-9 Nutzeinheiten | D35: 1961-1990 | E35: Fernwärme Österreich-Mix | F35: =0.5*6.694+0.5*25.279 -> 15.9865 | G35: =0.5*36+0.5*120.1 -> 78.05
B36: MFH | C36: Wohngebäude mit 3-9 Nutzeinheiten | D36: 1961-1990 | E36: Holz | F36: 5.628 | G36: 30.4
B37: MFH | C37: Wohngebäude mit 3-9 Nutzeinheiten | D37: 1961-1990 | E37: Wärmepumpe | F37: 12.183 | G37: 58.3
B38: MFH | C38: Wohngebäude mit 3-9 Nutzeinheiten | D38: 1919-1944 | E38: Fernwärme Erneuerbar | F38: 6.701 | G38: 36
B39: MFH | C39: Wohngebäude mit 3-9 Nutzeinheiten | D39: 1919-1944 | E39: Fernwärme Österreich-Mix | F39: =0.5*6.701+0.5*25.351 -> 16.026 | G39: =0.5*36+0.5*120.4 -> 78.2
B40: MFH | C40: Wohngebäude mit 3-9 Nutzeinheiten | D40: 1919-1944 | E40: Holz | F40: 5.63 | G40: 30.4
B41: MFH | C41: Wohngebäude mit 3-9 Nutzeinheiten | D41: 1919-1944 | E41: Wärmepumpe | F41: 12.21 | G41: 58.4
B42: MFH | C42: Wohngebäude mit 3-9 Nutzeinheiten | D42: ab 1991 | E42: Fernwärme Erneuerbar | F42: 6.968 | G42: 37.7
B43: MFH | C43: Wohngebäude mit 3-9 Nutzeinheiten | D43: ab 1991 | E43: Fernwärme Österreich-Mix | F43: =0.5*6.968+0.5*26.726 -> 16.847 | G43: =0.5*37.7+0.5*126.9 -> 82.3
B44: MFH | C44: Wohngebäude mit 3-9 Nutzeinheiten | D44: ab 1991 | E44: Holz | F44: 5.82 | G44: 31.6
B45: MFH | C45: Wohngebäude mit 3-9 Nutzeinheiten | D45: ab 1991 | E45: Wärmepumpe | F45: 13.055 | G45: 62.4
B46: MWB | C46: Wohngebäude mit 10+ Nutzeinheiten | D46: bis 1918 | E46: Fernwärme Erneuerbar | F46: 7.897 | G46: 40.1
B47: MWB | C47: Wohngebäude mit 10+ Nutzeinheiten | D47: bis 1918 | E47: Fernwärme Österreich-Mix | F47: =0.5*7.897+0.5*23.363 -> 15.63 | G47: =0.5*40.1+0.5*111 -> 75.55
B48: MWB | C48: Wohngebäude mit 10+ Nutzeinheiten | D48: bis 1918 | E48: Holz | F48: 5.387 | G48: 28.8
B49: MWB | C49: Wohngebäude mit 10+ Nutzeinheiten | D49: bis 1918 | E49: Wärmepumpe | F49: 11.293 | G49: 54
B50: MWB | C50: Wohngebäude mit 10+ Nutzeinheiten | D50: 1945-1960 | E50: Fernwärme Erneuerbar | F50: 6.433 | G50: 34.4
B51: MWB | C51: Wohngebäude mit 10+ Nutzeinheiten | D51: 1945-1960 | E51: Fernwärme Österreich-Mix | F51: 14.4105 | G51: 70.4
B52: MWB | C52: Wohngebäude mit 10+ Nutzeinheiten | D52: 1945-1960 | E52: Holz | F52: 5.393 | G52: 28.9
B53: MWB | C53: Wohngebäude mit 10+ Nutzeinheiten | D53: 1945-1960 | E53: Wärmepumpe | F53: 10.5865 | G53: 50.65
B54: MWB | C54: Wohngebäude mit 10+ Nutzeinheiten | D54: 1961-1990 | E54: Fernwärme Erneuerbar | F54: 6.555 | G54: 35.2
B55: MWB | C55: Wohngebäude mit 10+ Nutzeinheiten | D55: 1961-1990 | E55: Fernwärme Österreich-Mix | F55: 15.031 | G55: 73.45
B56: MWB | C56: Wohngebäude mit 10+ Nutzeinheiten | D56: 1961-1990 | E56: Holz | F56: 5.467 | G56: 29.4
B57: MWB | C57: Wohngebäude mit 10+ Nutzeinheiten | D57: 1961-1990 | E57: Wärmepumpe | F57: 10.976 | G57: 52.5
B58: MWB | C58: Wohngebäude mit 10+ Nutzeinheiten | D58: 1919-1944 | E58: Fernwärme Erneuerbar | F58: 6.566 | G58: 35.3
B59: MWB | C59: Wohngebäude mit 10+ Nutzeinheiten | D59: 1919-1944 | E59: Fernwärme Österreich-Mix | F59: =0.5*6.566+0.5*23.632 -> 15.099 | G59: =0.5*35.3+0.5*112.3 -> 73.8
B60: MWB | C60: Wohngebäude mit 10+ Nutzeinheiten | D60: 1919-1944 | E60: Holz | F60: 5.471 | G60: 29.5
B61: MWB | C61: Wohngebäude mit 10+ Nutzeinheiten | D61: 1919-1944 | E61: Wärmepumpe | F61: =AVERAGE(11.854,10.173) -> 11.0135 | G61: =AVERAGE(56.7,48.7) -> 52.7
B62: MWB | C62: Wohngebäude mit 10+ Nutzeinheiten | D62: ab 1991 | E62: Fernwärme Erneuerbar | F62: 7.14 | G62: 35.9
B63: MWB | C63: Wohngebäude mit 10+ Nutzeinheiten | D63: ab 1991 | E63: Fernwärme Österreich-Mix | F63: 13.046 | G63: 63
B64: MWB | C64: Wohngebäude mit 10+ Nutzeinheiten | D64: ab 1991 | E64: Holz | F64: 5.289 | G64: 27.7
B65: MWB | C65: Wohngebäude mit 10+ Nutzeinheiten | D65: ab 1991 | E65: Wärmepumpe | F65: 9.377 | G65: 44.8

Sheet Kalk Dämmung (hidden)
B2: Kalkulation Dämmung je m² BGF
B4: Art | C4: Größe | D4: Anz Gesch | E4: Höhe m | F4: BGF m² | G4: GF m2 | H4: Volumen m³ | I4: Hülle m² | J4: Ch Länge m | K4: San Dämmung m | L4: Dämmung m³ | M4: Verhältnis Dämmung/BGF | N4: Verhältnis Stock
B5: EF | C5: 10/12m | D5: 2 | E5: 10 | F5: 240 | G5: 120 | H5: 648 | I5: 477 | J5: 1.36 | K5: 0.16 | L5: =I5*K5 -> 76.32 | M5: =L5/F5 -> 0.318
B6: EF II | C6: 10/12m | D6: 2 | F6: 240 | K6: 0.2 | L6: =$I$5*K6 -> 95.4 | M6: 0.3975
B7: EF III | C7: 10/12m | D7: 2 | F7: 240 | K7: 0.24 | L7: =I5*K7 -> 114.48 | M7: 0.477
B8: MFH I | C8: 12/13m | D8: 3 | F8: =G9*D8 -> 468 | H8: 973 | I8: 717 | J8: 1.76 | K8: 0.2 | L8: =K8*I8 -> 143.4 | M8: 0.3064102564
B9: MFH II | C9: 12/13m | D9: 4 | E9: 16 | F9: 624 | G9: =F9/4 -> 156 | I9: 852 | J9: 1.98 | K9: 0.2 | L9: =K9*I9 -> 170.4 | M9: 0.2730769231 | N9: =L9/L8 -> 1.188284519
B10: MGW I | C10: 13/42m | D10: 3 | F10: 1638 | G10: =F10/D10 -> 546 | H10: 4422 | I10: 1983 | J10: 2.23 | K10: 0.2 | L10: =K10*I10 -> 396.6 | M10: 0.2421245421
B11: MGW II | C11: 13/42m | D11: 4 | F11: =G10*D11 -> 2184 | H11: 5897 | I11: 2280 | J11: 2.59 | K11: 0.2 | L11: =K11*I11 -> 456 | M11: 0.2087912088 | N11: =L11/L10 -> 1.149773071
B12: MGW III | C12: 13/42m | D12: 5 | F12: 2730 | H12: 7371 | I12: 2577 | J12: 2.86 | K12: 0.2 | L12: =K12*I12 -> 515.4 | M12: 0.1887912088 | N12: =L12/L11 -> 1.130263158
B16: Dämmung | I16: Emissionsfaktor
B17: [m³ Dämmung je m² BGF] | I17: Dämmung [kg CO2e/m³ Dämmmaterial] | L17: Default
B18: Wohngebäude mit 1-2 Nutzeinheiten | E18: 0.4 | I18: Standard Dämmung | K18: =Parameter!C25 -> 67 | L18: =D25*F25 -> 67
B19: Wohngebäude mit 3-9 Nutzeinheiten | E19: 0.3 | I19: Ökologische Dämmung | K19: =Parameter!C26 -> 60.42 | L19: =D26*F26 -> 60.42
B20: Wohngebäude mit 10+ Nutzeinheiten | E20: 0.2
D23: Emissionen | E23: PEB fossil | F23: Dichte | I23: PEB fossil
D24: kgCO2/kg | E24: kWh/kg | F24: kg/m³ | I24: Dämmung [kWh/m³ Dämmmaterial] | L24: Default | M24: PEB [MJ/kg]
B25: Standard Dämmung | D25: 2.68 | E25: =M25/3.6 -> 25.33333333 | F25: 25 | I25: Standard Dämmung | K25: =Parameter!E25 -> 633.3333333 | L25: =E25*F25 -> 633.3333333 | M25: 91.2
B26: Ökologische Dämmung | D26: 1.59 | E26: =M26/3.6 -> 8.5 | F26: 38 | I26: Ökologische Dämmung | K26: =Parameter!E26 -> 323 | L26: =E26*F26 -> 323 | M26: 30.6

Sheet Kalk Bausubstanz (hidden)
B2: Kalkulation Bausubstanz
B4: Bausubstanz [m³/m² BGF]
B6: Art | C6: Wohngebäude mit 1-2 Nutzeinheiten | D6: Wohngebäude mit 1-2 Nutzeinheiten2 | E6: Wohngebäude mit 1-2 Nutzeinheiten3 | F6: Wohngebäude mit 1-2 Nutzeinheiten4 | G6: Wohngebäude mit 1-2 Nutzeinheiten5 | H6: Wohngebäude mit 3-9 Nutzeinheiten | I6: Wohngebäude mit 3-9 Nutzeinheiten2 | J6: Wohngebäude mit 3-9 Nutzeinheiten3 | K6: Wohngebäude mit 3-9 Nutzeinheiten4 | L6: Wohngebäude mit 3-9 Nutzeinheiten5 | M6: Wohngebäude mit 10+ Nutzeinheiten | N6: Wohngebäude mit 10+ Nutzeinheiten2 | O6: Wohngebäude mit 10+ Nutzeinheiten3 | P6: Wohngebäude mit 10+ Nutzeinheiten4 | Q6: Wohngebäude mit 10+ Nutzeinheiten5
B7: Kürzel | C7: EFH | D7: EFH | E7: EFH | F7: EFH | G7: EFH | H7: MFH | I7: MFH | J7: MFH | K7: MFH | L7: MFH | M7: MWB | N7: MWB | O7: MWB | P7: MWB | Q7: MWB
B8: Bauperiode | C8: bis 1918 | D8: 1919-1944 | E8: 1945-1960 | F8: 1961-1990 | G8: ab 1991 | H8: bis 1918 | I8: 1919-1944 | J8: 1945-1960 | K8: 1961-1990 | L8: 1991 bis | M8: bis 1918 | N8: 1919-1944 | O8: 1945-1960 | P8: 1961-1990 | Q8: ab 1991
B9: Holz | C9: 0.0996718794 | D9: 0 | E9: 0 | F9: 0 | G9: 0.58281984 | H9: 0.08478937198 | I9: 0.1442600542 | J9: 0.001211550802 | K9: 0 | L9: 0.01998058252 | M9: 0.1692757347 | N9: 0.1075849899 | O9: 0.00279798618 | P9: 0.003765098375 | Q9: 0
B10: Ziegel | C10: 0.4994974874 | D10: 0.4120903955 | E10: 0.2406907895 | F10: 0 | G10: 0 | H10: 0.3809661836 | I10: 0.3589159892 | J10: 0.1808823529 | K10: 0 | L10: 0 | M10: 0.3773211964 | N10: 0.2612576065 | O10: 0 | P10: 0 | Q10: 0
B11: Beton | C11: 0.1159547739 | D11: 0 | E11: 0 | F11: 0.4952795031 | G11: 0 | H11: 0.08345410628 | I11: 0 | J11: 0 | K11: 0 | L11: 0 | M11: 0 | N11: 0.08333333333 | O11: 0 | P11: 0 | Q11: 0
B12: Stahl | C12: 0.005565829146 | D12: 0 | E12: 0 | F12: 0 | G12: 0 | H12: 0 | I12: 0 | J12: 0 | K12: 0 | L12: 0 | M12: 0 | N12: 0 | O12: 0 | P12: 0 | Q12: 0
B13: Glas | C13: 0.0006375419957 | D13: 0.001112701211 | E13: 0.001363741353 | F13: 0.003661935759 | G13: 0.005319826286 | H13: 0.0008485852312 | I13: 0.0006035772358 | J13: 0.000816696715 | K13: 0.001862411705 | L13: 0.001665509015 | M13: 0.0007878432101 | N13: 0.0007260504202 | O13: 0.001886100127 | P13: 0.00253802273 | Q13: 0.001835760087
B14: Stahlbeton | C14: 0 | D14: 0.3172881356 | E14: 0.3179440789 | F14: 0.2583850932 | G14: 0.3796 | H14: 0 | I14: 0.08326558266 | J14: 0.3496991979 | K14: 0.3842674253 | L14: 0.3975 | M14: 0 | N14: 0 | O14: 0.2340967423 | P14: 0.2668263473 | Q14: 0.3579452926
B16: Bausubstanz [kg/m² BGF]
B18: Art | C18: Wohngebäude mit 1-2 Nutzeinheiten | D18: Wohngebäude mit 1-2 Nutzeinheiten2 | E18: Wohngebäude mit 1-2 Nutzeinheiten3 | F18: Wohngebäude mit 1-2 Nutzeinheiten4 | G18: Wohngebäude mit 1-2 Nutzeinheiten5 | H18: Wohngebäude mit 3-9 Nutzeinheiten | I18: Wohngebäude mit 3-9 Nutzeinheiten2 | J18: Wohngebäude mit 3-9 Nutzeinheiten3 | K18: Wohngebäude mit 3-9 Nutzeinheiten4 | L18: Wohngebäude mit 3-9 Nutzeinheiten5 | M18: Wohngebäude mit 10+ Nutzeinheiten | N18: Wohngebäude mit 10+ Nutzeinheiten2 | O18: Wohngebäude mit 10+ Nutzeinheiten3 | P18: Wohngebäude mit 10+ Nutzeinheiten4 | Q18: Wohngebäude mit 10+ Nutzeinheiten5
B19: Kürzel | C19: EFH | D19: EFH | E19: EFH | F19: EFH | G19: EFH | H19: MFH | I19: MFH | J19: MFH | K19: MFH | L19: MFH | M19: MWB | N19: MWB | O19: MWB | P19: MWB | Q19: MWB
B20: Bauperiode | C20: bis 1918 | D20: 1919-1944 | E20: 1945-1960 | F20: 1961-1990 | G20: ab 1991 | H20: bis 1918 | I20: 1919-1944 | J20: 1945-1960 | K20: 1961-1990 | L20: 1991 bis | M20: bis 1918 | N20: 1919-1944 | O20: 1945-1960 | P20: 1961-1990 | Q20: ab 1991
B21: Holz | C21: =C9*$L33 -> 52.7264242 | D21: 0 | E21: 0 | F21: 0 | G21: 308.3116954 | H21: 44.85357778 | I21: 76.31356867 | J21: 0.6409103743 | K21: 0 | L21: 10.56972816 | M21: 89.54686367 | N21: 56.91245963 | O21: 1.480134689 | P21: 1.99173704 | Q21: 0
B22: Ziegel | C22: =C10*$L34 -> 349.6482412 | D22: 288.4632768 | E22: 168.4835526 | F22: 0 | G22: 0 | H22: 266.6763285 | I22: 251.2411924 | J22: 126.6176471 | K22: 0 | L22: 0 | M22: 264.1248375 | N22: 182.8803245 | O22: 0 | P22: 0 | Q22: 0
B23: Beton | C23: =C11*$L35 -> 278.2914573 | D23: 0 | E23: 0 | F23: 1188.670807 | G23: 0 | H23: =H11*$L35 -> 200.2898551 | I23: 0 | J23: 0 | K23: 0 | L23: =L11*$L35 -> 0 | M23: 0 | N23: 200 | O23: 0 | P23: 0 | Q23: 0
B24: Stahl | C24: =C12*$L36 -> 43.97005025 | D24: 0 | E24: 0 | F24: 0 | G24: 0 | H24: 0 | I24: 0 | J24: 0 | K24: =K12*$L36 -> 0 | L24: 0 | M24: 0 | N24: 0 | O24: 0 | P24: 0 | Q24: 0
B25: Glas | C25: =C13*$L37 -> 1.593854989 | D25: 2.781753027 | E25: 3.409353383 | F25: 9.154839397 | G25: 13.29956571 | H25: 2.121463078 | I25: 1.508943089 | J25: 2.041741788 | K25: 4.656029262 | L25: 4.163772538 | M25: 1.969608025 | N25: 1.81512605 | O25: 4.715250317 | P25: 6.345056825 | Q25: 4.589400218
B26: Stahlbeton | C26: =C14*$L38 -> 0 | D26: =D14*$L38 -> 761.4915254 | E26: 763.0657895 | F26: 620.1242236 | G26: 911.04 | H26: 0 | I26: 199.8373984 | J26: 839.2780749 | K26: 922.2418208 | L26: 954 | M26: 0 | N26: 0 | O26: 561.8321816 | P26: 640.3832335 | Q26: 859.0687023
B27: kg CO2 eq je m² BGF | C27: =C21*$H$33+C22*$H$34+C23*$H$35+C24*$H$36+C25*$H$37+C26*$H$38 -> 168.4962111 | D27: =D21*$H$33+D22*$H$34+D23*$H$35+D24*$H$36+D25*$H$37+D26*$H$38 -> 173.4655893 | E27: 145.9317065 | F27: =F21*$H$33+F22*$H$34+F23*$H$35+F24*$H$36+F25*$H$37+F26*$H$38 -> 199.4341395 | G27: =G21*$H$33+G22*$H$34+G23*$H$35+G24*$H$36+G25*$H$37+G26*$H$38 -> 224.5777155 | H27: 96.22508195 | I27: =I21*$H$33+I22*$H$34+I23*$H$35+I24*$H$36+I25*$H$37+I26*$H$38 -> 109.7315785 | J27: 144.9002198 | K27: 128.7020362 | L27: 135.4285223 | M27: 90.28501145 | N27: 79.43932657 | O27: 80.89412607 | P27: 93.35856086 | Q27: 120.1635463
B28: kWh je m² BGF | C28: =C21*$H$43+C22*$H$44+C23*$H$45+C24*$H$46+C25*$H$47+C26*$H$48 -> 687.7380083 | D28: 458.2715306 | E28: 324.8394278 | F28: 276.5274984 | G28: 592.8180105 | H28: 393.1220354 | I28: =I21*$H$43+I22*$H$44+I23*$H$45+I24*$H$46+I25*$H$47+I26*$H$48 -> 420.6876909 | J28: 284.2570423 | K28: 163.5016514 | L28: 179.9298367 | M28: 423.0063077 | N28: 312.0431582 | O28: 109.3814963 | P28: 129.1354564 | Q28: 153.3601539
C31: Emissionen | G31: Emissionsfaktor
C32: Bausubstanz [kg CO2eq/m² BGF] | G32: Bausubstanz [kg CO2e/kg] | I32: Default | K32: Dichte [kg/m³] | M32: Default
B33: 0 | C33: Wohngebäude mit 1-2 Nutzeinheiten | D33: Wohngebäude mit 3-9 Nutzeinheiten | E33: Wohngebäude mit 10+ Nutzeinheiten | G33: Holz | H33: =Parameter!C13 -> 0.285 | I33: 0.285 | K33: Holz | L33: =Parameter!I13 -> 529 | M33: 529
B34: bis 1918 | C34: ='Kalk Bausubstanz'!C27 -> 168.4962111 | D34: ='Kalk Bausubstanz'!H27 -> 96.22508195 | E34: ='Kalk Bausubstanz'!M27 -> 90.28501145 | G34: Ziegel | H34: =Parameter!C14 -> 0.237 | I34: 0.237 | K34: Ziegel | L34: =Parameter!I14 -> 700 | M34: 700
B35: 1919-1944 | C35: ='Kalk Bausubstanz'!D27 -> 173.4655893 | D35: ='Kalk Bausubstanz'!I27 -> 109.7315785 | E35: ='Kalk Bausubstanz'!N27 -> 79.43932657 | G35: Beton | H35: =Parameter!C15 -> 0.0894 | I35: 0.0894 | K35: Beton | L35: =Parameter!I15 -> 2400 | M35: 2400
B36: 1945-1960 | C36: ='Kalk Bausubstanz'!E27 -> 145.9317065 | D36: ='Kalk Bausubstanz'!J27 -> 144.9002198 | E36: ='Kalk Bausubstanz'!O27 -> 80.89412607 | G36: Stahl | H36: =Parameter!C16 -> 1 | I36: 1 | K36: Stahl | L36: =Parameter!I16 -> 7900 | M36: 7900
B37: 1961-1990 | C37: ='Kalk Bausubstanz'!F27 -> 199.4341395 | D37: ='Kalk Bausubstanz'!K27 -> 128.7020362 | E37: ='Kalk Bausubstanz'!P27 -> 93.35856086 | G37: Glas | H37: =Parameter!C17 -> 1.1 | I37: 1.1 | K37: Glas | L37: =Parameter!I17 -> 2500 | M37: 2500
B38: ab 1991 | C38: ='Kalk Bausubstanz'!G27 -> 224.5777155 | D38: ='Kalk Bausubstanz'!L27 -> 135.4285223 | E38: ='Kalk Bausubstanz'!Q27 -> 120.1635463 | G38: Stahlbeton | H38: =Parameter!C18 -> 0.134 | I38: 0.134 | K38: Stahlbeton | L38: =Parameter!I18 -> 2400 | M38: 2400
C41: PEB fossil | G41: PEB fossil
C42: Bausubstanz [kWh/m² BGF] | G42: Bausubstanz [kWh/kg] | I42: Default | J42: PEB [MJ/kg]
B43: 0 | C43: Wohngebäude mit 1-2 Nutzeinheiten | D43: Wohngebäude mit 3-9 Nutzeinheiten | E43: Wohngebäude mit 10+ Nutzeinheiten | G43: Holz | H43: =Parameter!E13 -> 1.280555556 | I43: =J43/3.6 -> 1.280555556 | J43: 4.61
B44: bis 1918 | C44: =C28 -> 687.7380083 | D44: =H28 -> 393.1220354 | E44: =M28 -> 423.0063077 | G44: Ziegel | H44: =Parameter!E14 -> 1.136111111 | I44: =J44/3.6 -> 1.136111111 | J44: 4.09
B45: 1919-1944 | C45: =D28 -> 458.2715306 | D45: =I28 -> 420.6876909 | E45: =N28 -> 312.0431582 | G45: Beton | H45: =Parameter!E15 -> 0.1188888889 | I45: =J45/3.6 -> 0.1188888889 | J45: 0.428
B46: 1945-1960 | C46: =E28 -> 324.8394278 | D46: =J28 -> 284.2570423 | E46: =O28 -> 109.3814963 | G46: Stahl | H46: =Parameter!E16 -> 4.166666667 | I46: =J46/3.6 -> 4.166666667 | J46: 15
B47: 1961-1990 | C47: =F28 -> 276.5274984 | D47: =K28 -> 163.5016514 | E47: =P28 -> 129.1354564 | G47: Glas | H47: =Parameter!E17 -> 4.194444444 | I47: =J47/3.6 -> 4.194444444 | J47: 15.1
B48: ab 1991 | C48: =G28 -> 592.8180105 | D48: =L28 -> 179.9298367 | E48: =Q28 -> 153.3601539 | G48: Stahlbeton | H48: =Parameter!E18 -> 0.1561111111 | I48: =J48/3.6 -> 0.1561111111 | J48: 0.562

Sheet Quelle Bsp (hidden)
E8: https://www.ots.at/presseaussendung/OTS_20210423_OTS0078/jungwald-leistet-klimaschutz
E15: https://www.umweltbundesamt.at/fileadmin/site/themen/mobilitaet/daten/ekz_fzkm_verkehrsmittel.pdf
E20: https://co2calc.climateaustria.at/co2calculator/flightSubmitAirports
E30: Der Ministerrat hat heute vormittag die Stromkostenbremse beschlossen. Sie ist für circa 80 Prozent des Durchschnittsverbrauchs eines österreichischen Haushalts wirksam und wird den gestiegenen Energiekosten massiv entgegenwirken. Für den Verbrauch über 2.900 kWh hinaus muss der Marktpreis bezahlt werden. Dadurch wird auch ein Anreiz zum Stromsparen gesetzt. 80 % = 2900, 100 % = 3600 https://infothek.bmk.gv.at/entlastung-strompreis-stromkostenbremse/
E39: Eigenen Sonnenstrom tanken Besonders für Hausbesitzende im ländlichen Raum bietet sich das Tanken mit eigenem Sonnenstrom an. Ein Carport mit 12 Quadratmeter Solardach (Photovoltaik-Module) ist ausreichend um jährlich 2.200 Kilowattstunden (kWh) Strom für 15.000 km mit dem Elektro-Auto (Verbrauch von 14,9 kWh/100 km) zu erzeugen. Damit macht man sich unabhängig von Ölkrisen und ist gleichzeitig klimafreundlich mobil. https://www.bmk.gv.at/themen/mobilitaet/alternative_verkehrskonzepte/elektromobilitaet/zahlen/faktencheck.html
E48: Die einen backen mehrmals in der Woche, die anderen nur sporadisch – aber ganz ohne Backofen kommt kaum ein Haushalt aus. Bei häufiger Nutzung wird er zu einem der größten Stromverbraucher im Haushalt. Denn das Backen ist sehr energieaufwendig. Als Richtwert gilt, dass ein Backofen bei 200 Grad pro Stunde einen Stromverbrauch von 1500 bis 2000 Watt aufweist. https://www.energie.web.de/ratgeber/verbrauch/stromverbrauch-backofen/#:~:text=Bei%20h%C3%A4ufiger%20Nutzung%20wird%20er,1500%20bis%202000%20Watt%20aufweist.

Sheet Listen (hidden)
B3: Bauperiode
B4: bitte auswählen
B5: bis 1918
B6: 1919-1944
B7: 1945-1960
B8: 1961-1990
B9: ab 1991
B11: Gebäudeart
B12: bitte auswählen
B13: Wohngebäude mit 1-2 Nutzeinheiten
B14: Wohngebäude mit 3-9 Nutzeinheiten
B15: Wohngebäude mit 10+ Nutzeinheiten
B17: Dämmung:
B18: bitte auswählen
B19: Standard Dämmung
B20: Ökologische Dämmung
B22: Wärmebereitsstellungssystem Bestand:
B23: bitte auswählen
B24: Erdgas
B25: Erdgas Brennwert
B26: Heizöl
B27: Holz
B28: Fernwärme Erneuerbar
B29: Fernwärme Österreich-Mix
B30: Wärmepumpe
B32: Wärmebereitsstellungssystem Neu:
B33: bitte auswählen
B34: Holz
B35: Fernwärme Erneuerbar
B36: Fernwärme Österreich-Mix
B37: Wärmepumpe

Sheet Farben (hidden)
C2: Klimaaktiv Farben
C6: Primärfarben | H6: Funktionsfarben
D8: 0 | E8: 0 | F8: 0 | I8: 239 | J8: 244 | K8: 247
D9: 230 | E9: 50 | F9: 15 | I9: 228 | J9: 235 | K9: 240
D10: 225 | E10: 50 | F10: 15 | I10: 217 | J10: 227 | K10: 232
D11: 167 | E11: 39 | F11: 2
I12: 246 | J12: 244 | K12: 240
I13: 240 | J13: 236 | K13: 232
I14: 233 | J14: 228 | K14: 223
C18: ka Logo | H18: ka Logo 40%
D20: 252 | E20: 215 | F20: 0 | I20: 251 | J20: 237 | K20: 168
D21: 201 | E21: 210 | F21: 0 | I21: 222 | J21: 235 | K21: 172
D22: 82 | E22: 174 | F22: 50 | I22: 183 | J22: 220 | K22: 172
D23: 0 | E23: 145 | F23: 207 | I23: 161 | J23: 199 | K23: 235
D24: 151 | E24: 0 | F24: 82 | I24: 206 | J24: 144 | K24: 172
C28: Sekundärfarben
D30: 255 | E30: 212 | F30: 0
D31: 187 | E31: 207 | F31: 0
D32: 95 | E32: 181 | F32: 100
D33: 59 | E33: 172 | F33: 190
D34: 78 | E34: 143 | F34: 204
D35: 0 | E35: 99 | F35: 163
D36: 0 | E36: 61 | F36: 132
D37: 71 | E37: 29 | F37: 112
D38: 98 | E38: 12 | F38: 59
D39: 149 | E39: 15 | F39: 83
D40: 202 | E40: 2 | F40: 55
D41: 245 | E41: 156 | F41: 0
C44: Paare
D46: 78 | E46: 143 | F46: 204 | I46: 187 | J46: 207 | K46: 0 | N46: 255 | O46: 212 | P46: 0
D47: 202 | E47: 2 | F47: 55 | I47: 71 | J47: 29 | K47: 112 | N47: 0 | O47: 61 | P47: 132
D49: 59 | E49: 172 | F49: 190 | I49: 245 | J49: 156 | K49: 0 | N49: 95 | O49: 181 | P49: 100
D50: 149 | E50: 15 | F50: 83 | I50: 0 | J50: 99 | K50: 163 | N50: 98 | O50: 12 | P50: 59
C53: Sekundärfarben Abstufungen
D55: 255 | E55: 244 | F55: 206 | I55: 239 | J55: 243 | K55: 208 | N55: 223 | O55: 237 | P55: 218 | S55: 217 | T55: 233 | U55: 239 | X55: 215 | Y55: 225 | Z55: 243 | AC55: 192 | AD55: 209 | AE55: 232
D56: 255 | E56: 232 | F56: 151 | I56: 222 | J56: 230 | K56: 155 | N56: 186 | O56: 218 | P56: 179 | S56: 177 | T56: 214 | U56: 222 | X56: 176 | Y56: 196 | Z56: 231 | AC56: 127 | AD56: 168 | AE56: 209
D57: 255 | E57: 222 | F57: 83 | I57: 207 | J57: 218 | K57: 92 | N57: 145 | O57: 200 | P57: 141 | S57: 127 | T57: 192 | U57: 205 | X57: 130 | Y57: 169 | Z57: 218 | AC57: 42 | AD57: 131 | AE57: 186
D58: 255 | E58: 212 | F58: 0 | I58: 188 | J58: 207 | K58: 0 | N58: 95 | O58: 181 | P58: 100 | S58: 59 | T58: 172 | U58: 190 | X58: 78 | Y58: 143 | Z58: 204 | AC58: 0 | AD58: 99 | AE58: 163
D59: 206 | E59: 173 | F59: 0 | I59: 152 | J59: 169 | K59: 0 | N59: 77 | O59: 149 | P59: 83 | S59: 48 | T59: 142 | U59: 156 | X59: 65 | Y59: 118 | Z59: 167 | AC59: 0 | AD59: 76 | AE59: 126
D60: 153 | E60: 130 | F60: 0 | I60: 113 | J60: 128 | K60: 0 | N60: 56 | O60: 113 | P60: 63 | S60: 35 | T60: 107 | U60: 118 | X60: 48 | Y60: 89 | Z60: 126 | AC60: 0 | AD60: 49 | AE60: 84
D63: 192 | E63: 196 | F63: 223 | I63: 200 | J63: 189 | K63: 218 | N63: 207 | O63: 184 | P63: 194 | S63: 224 | T63: 196 | U63: 207 | X63: 242 | Y63: 202 | Z63: 198 | AC63: 254 | AD63: 230 | AE63: 200
D64: 132 | E64: 142 | F64: 190 | I64: 149 | J64: 127 | K64: 178 | N64: 165 | O64: 119 | P64: 140 | S64: 196 | T64: 136 | U64: 159 | X64: 229 | Y64: 146 | Z64: 142 | AC64: 252 | AD64: 206 | AE64: 142
D65: 73 | E65: 97 | F65: 160 | I65: 107 | J65: 73 | K65: 140 | N65: 129 | O65: 64 | P65: 94 | S65: 171 | T65: 79 | U65: 117 | X65: 216 | Y65: 87 | Z65: 94 | AC65: 249 | AD65: 181 | AE65: 79
D66: 0 | E66: 61 | F66: 132 | I66: 71 | J66: 29 | K66: 112 | N66: 98 | O66: 13 | P66: 59 | S66: 149 | T66: 15 | U66: 83 | X66: 202 | Y66: 2 | Z66: 55 | AC66: 245 | AD66: 156 | AE66: 0
D67: 0 | E67: 45 | F67: 102 | I67: 56 | J67: 17 | K67: 86 | N67: 64 | O67: 0 | P67: 33 | S67: 114 | T67: 7 | U67: 61 | X67: 158 | Y67: 5 | Z67: 41 | AC67: 197 | AD67: 127 | AE67: 0
D68: 0 | E68: 25 | F68: 67 | I68: 38 | J68: 0 | K68: 56 | S68: 74 | T68: 0 | U68: 34 | X68: 110 | Y68: 3 | Z68: 22 | AC68: 148 | AD68: 96 | AE68: 0

Sheet Lebenszyklus (hidden)
C4: Angaben zum Lebenszyklus des Gebäudes EN 15978
C6: A 1-3 | F6: A 4-5 | H6: B 1-7 | M6: C1-4 | R6: D
C7: Herstellungsphase | F7: Errichtungs-phase | H7: Nutzungsphase | M7: Entsorgungsphase | R7: Ergänzende Informationen außerhabl des Gebäudezyklus
C9: A1 | D9: A2 | E9: A3 | F9: A4-5 | G9: A5 | H9: B1 | I9: B2 | J9: B3 | K9: B4 | L9: B5 | M9: C1 | N9: C2 | O9: C3 | P9: C4 | R9: Vorteile und Belastungen außerhalb der Systemgrenze
C10: Rohstoff-beschaffung | D10: Transport | E10: Produktion | F10: Transport | G10: Errichtung/Einbau | H10: Nutzungsphase | I10: Instandhaltung | J10: Instandsetzung | K10: Austausch | L10: Modernisierung | M10: Rückbau/Abriss | N10: Transport | O10: Abfallbehandlung | P10: Beseitigung
R14: Potential für Wiederverwendung, Rückgewinnung und Recycling
H17: B6 Energieverbrauch im Betrieb
H19: B7 Wasserverbrauch im Betrieb
